bitfinex/quotes_SOLUSD_20251002
["timestamp","ask_amount","ask_price","bid_price","bid_amount"]
[1759389740208,11.16079835,224.43,224.42,20.0]
[1759389740531,14.18267529,224.43,224.42,20.0]
[1759389740913,2.3412994,224.52,224.45,24.45527251]
[1759389741230,40.87647521,224.46,224.45,20.0]
[1759389741736,10.87647521,224.46,224.45,20.0]
[1759389748928,0.7,224.48,224.47,20.0]
[1759389749110,30.98432314,224.48,224.47,20.0]
[1759389749313,30.28432314,224.48,224.47,20.0]
[1759389749933,11.16079835,224.47,224.45,24.45527408]
[1759389750442,11.16079835,224.47,224.45,20.0]
[1759389751842,11.16079835,224.47,224.45,24.4553226]
[1759389755261,0.2,224.59,224.5,20.0]
[1759389755427,40.87647521,224.51,224.5,20.0]
[1759389755953,41.16079835,224.51,224.5,20.0]
[1759389757357,11.16079835,224.51,224.5,20.0]
[1759389758838,32.18,224.55,224.5,25.14434298]
[1759389759043,11.16079835,224.54,224.53,20.0]
[1759389759427,10.87647521,224.54,224.53,20.0]
[1759389759930,11.16079835,224.54,224.53,20.0]
[1759389760934,41.16079835,224.54,224.53,20.0]
[1759389761334,11.16079835,224.54,224.53,20.0]
[1759389761741,0.28432314,224.53,224.52,4.45392588]
[1759389761935,10.87647521,224.55,224.52,5.14392588]
[1759389762136,10.87647521,224.58,224.54,20.0]
[1759389762360,40.87647521,224.55,224.54,20.0]
[1759389762553,11.16079835,224.55,224.54,20.0]
[1759389763055,0.28432314,224.53,224.5,20.0]
[1759389763241,0.28432314,224.53,224.47,20.69]
[1759389763448,11.16079835,224.51,224.5,20.0]
[1759389763846,11.16079835,224.51,224.48,20.0]
[1759389764160,11.16079835,224.51,224.5,20.0]
[1759389764489,14.45218848,224.51,224.5,20.0]
[1759389765335,14.45126023,224.51,224.5,20.0]
[1759389766260,14.45176318,224.51,224.5,20.0]
[1759389767040,19.60590776,224.51,224.47,20.0]
[1759389767261,7.56902612,224.5,224.49,20.0]
[1759389767462,11.16079835,224.49,224.48,20.0]
[1759389768052,0.28432314,224.49,224.48,20.0]
[1759389768366,11.16079835,224.49,224.48,20.0]
[1759389769367,17.75387647,224.49,224.48,20.0]
[1759389770381,17.75641965,224.49,224.48,20.0]
[1759389772348,17.75641965,224.49,224.46,20.69]
[1759389772557,0.28432314,224.5,224.48,20.0]
[1759389772756,6.89983408,224.49,224.48,20.0]
[1759389773072,6.89983408,224.49,224.46,20.69]
[1759389773271,6.61551094,224.48,224.46,20.69]
[1759389773453,10.87647521,224.46,224.44,20.0]
[1759389773778,17.49198615,224.45,224.44,20.0]
[1759389773944,17.49198615,224.45,224.44,20.69]
[1759389774546,17.77630929,224.45,224.44,20.0]
[1759389775672,22.93164455,224.45,224.44,20.0]
[1759389779094,18.47630929,224.45,224.44,20.0]
[1759389779387,47.77630929,224.45,224.44,20.0]
[1759389780592,48.47630929,224.45,224.44,20.0]
[1759389780887,48.47630929,224.45,224.39,36.56635909]
[1759389780888,0.28432314,224.44,224.43,20.0]
[1759389781093,11.16079835,224.43,224.42,20.0]
[1759389781294,17.79120911,224.43,224.42,20.0]
[1759389782283,18.49120911,224.43,224.42,20.0]
[1759389782497,0.28432314,224.42,224.38,20.0]
[1759389782710,11.16079835,224.4,224.36,20.69]
[1759389783000,11.16079835,224.4,224.38,20.0]
[1759389783001,18.49120911,224.39,224.38,20.0]
[1759389783169,0.28432314,224.38,224.36,20.0]
[1759389783375,0.28432314,224.39,224.36,24.45712248]
[1759389783693,3.31817614,224.38,224.36,24.45712248]
[1759389783868,0.28432314,224.39,224.38,20.0]
[1759389784068,3.60253949,224.39,224.38,20.69]
[1759389784465,3.31821635,224.39,224.38,20.69]
[1759389784694,10.87647521,224.43,224.38,52.09]
[1759389784995,11.01863678,224.43,224.42,20.0]
[1759389785192,47.65532813,224.43,224.42,20.69]
[1759389785373,47.7974897,224.43,224.42,20.69]
[1759389785782,17.7974897,224.43,224.42,20.69]
[1759389786277,17.7974897,224.43,224.42,20.0]
[1759389786800,14.47925378,224.43,224.42,20.0]
[1759389787989,14.47925378,224.43,224.42,20.69]
[1759389788494,14.47925378,224.43,224.42,20.0]
[1759389788701,14.47925378,224.43,224.42,20.69]
[1759389789588,14.19493064,224.43,224.42,25.14593084]
[1759389789995,14.19493064,224.43,224.34,20.0]
[1759389789996,18.49665246,224.43,224.34,20.0]
[1759389790170,0.28432314,224.36,224.34,20.0]
[1759389790377,10.87647521,224.34,224.32,20.0]
[1759389790589,0.7,224.34,224.32,20.0]
[1759389791103,13.50209775,224.33,224.32,20.0]
[1759389791303,10.87647521,224.32,224.29,20.0]
[1759389791600,11.57647521,224.32,224.29,20.0]
[1759389791806,2.3412994,224.3,224.29,20.0]
[1759389792098,2.3412994,224.3,224.21,0.1]
[1759389792099,0.28432314,224.24,224.21,0.1]
[1759389792290,5.9319898,224.23,224.21,0.1]
[1759389792493,20.11487346,224.23,224.21,0.1]
[1759389792674,20.81487346,224.23,224.21,0.1]
[1759389793080,14.20209775,224.23,224.21,0.1]
[1759389793278,15.16276412,224.23,224.22,20.1]
[1759389794298,11.86079835,224.23,224.22,20.1]
[1759389794810,11.16079835,224.23,224.22,20.1]
[1759389795102,11.16079835,224.23,224.22,20.79]
[1759389795798,10.87647521,224.23,224.22,20.79]
[1759389796001,10.87647521,224.3,224.25,20.0]
[1759389796198,3.29545674,224.29,224.27,20.0]
[1759389796418,24.24647521,224.27,224.22,0.1]
[1759389796575,18.3853474,224.23,224.22,0.1]
[1759389796901,18.66967054,224.23,224.22,0.1]
[1759389798982,18.66967054,224.23,224.22,20.1]
[1759389801108,13.37,224.22,224.18,0.1]
[1759389801283,11.16079835,224.2,224.18,0.79]
[1759389801483,11.16079835,224.2,224.18,0.1]
[1759389801890,0.28432314,224.2,224.18,0.76]
[1759389805782,20.8,224.16,224.07,2.32872978]
[1759389805989,0.28432314,224.14,224.07,3.01872978]
[1759389806186,0.28432314,224.1,224.07,3.01872978]
[1759389806432,0.28432314,224.1,224.07,0.69]
[1759389806601,10.87647521,224.09,224.07,0.69]
[1759389807319,0.28432314,224.06,224.02,0.69]
[1759389807483,1.78349616,224.06,224.02,0.69]
[1759389807686,1.78349616,224.06,224.0,2.42944913]
[1759389807924,1.78349616,224.06,224.03,0.69]
[1759389808291,10.87647521,224.05,224.03,0.69]
[1759389808808,0.28432314,224.06,224.03,0.69]
[1759389809019,0.28432314,224.06,224.03,5.15367305]
[1759389809390,0.28432314,224.08,224.04,0.69]
[1759389809584,0.28432314,224.08,224.05,0.69]
[1759389809984,2.46349616,224.08,224.02,0.69]
[1759389810214,10.87647521,224.06,224.02,0.69]
[1759389810396,10.87647521,224.06,224.03,0.69]
[1759389810597,10.87647521,224.06,224.04,0.69]
[1759389810794,10.87647521,224.06,224.0,0.1]
[1759389810795,17.59768729,224.05,224.0,0.1]
[1759389811104,12.65997137,224.03,224.0,0.1]
[1759389811697,0.28432314,224.03,224.0,0.1]
[1759389811886,0.28432314,224.03,224.0,4.56424599]
[1759389812086,0.28432314,224.04,224.01,0.69]
[1759389812303,0.28432314,224.04,224.02,0.69]
[1759389812528,0.28432314,224.07,224.03,0.69]
[1759389812689,0.14216157,224.07,224.04,0.69]
[1759389812885,0.28432314,224.07,224.04,0.69]
[1759389813314,10.87647521,224.09,224.05,0.69]
[1759389813509,0.28432314,224.08,224.0,15.72496027]
[1759389813816,0.28432314,224.08,224.05,5.15317455]
[1759389814537,0.28432314,224.1,224.05,4.46317455]
[1759389814825,0.28432314,224.04,224.0,0.1]
[1759389814996,1.49917302,224.01,224.0,0.1]
[1759389815532,4.75896201,224.01,224.0,0.1]
[1759389815693,3.54411213,224.01,224.0,0.1]
[1759389815894,11.16079835,224.01,224.0,0.1]
[1759389816226,15.91968579,224.01,224.0,0.1]
[1759389817426,14.42051277,224.01,224.0,0.1]
[1759389817620,11.16079835,224.01,224.0,0.1]
[1759389817948,14.41908832,224.01,224.0,0.1]
[1759389818720,11.01863678,224.01,224.0,0.79]
[1759389819048,1.49917302,224.06,224.0,5.25410987]
[1759389819340,14.13553635,224.05,224.0,5.25410987]
[1759389819533,0.14216157,224.02,224.0,5.25410987]
[1759389819719,0.14216157,224.02,224.01,0.69]
[1759389820309,0.5,224.03,224.02,4.46388715]
[1759389820526,11.01863678,224.06,224.02,5.15388715]
[1759389820733,0.14216157,224.05,224.03,0.69]
[1759389821009,10.87647521,224.08,224.04,0.69]
[1759389821210,0.28432314,224.07,224.04,0.69]
[1759389821408,10.87647521,224.08,224.05,0.69]
[1759389821649,3.25919233,224.07,224.05,0.69]
[1759389821820,10.87647521,224.08,224.05,0.69]
[1759389822013,3.2592921,224.07,224.05,0.69]
[1759389822249,10.87647521,224.08,224.05,0.69]
[1759389822409,3.26031065,224.07,224.05,0.69]
[1759389822610,10.87647521,224.08,224.05,0.69]
[1759389822935,3.26030846,224.07,224.06,0.69]
[1759389823449,10.87647521,224.08,224.06,0.69]
[1759389823841,11.16079835,224.08,224.07,0.69]
[1759389824150,11.16079835,224.08,224.07,5.15289106]
[1759389824945,0.28432314,224.09,224.07,5.15289106]
[1759389825145,0.28432314,224.09,224.08,0.69]
[1759389825318,14.42475797,224.09,224.08,0.69]
[1759389825512,11.16079835,224.09,224.08,0.69]
[1759389826336,80.8,224.11,224.09,4.46249274]
[1759389827040,91.96079835,224.11,224.1,0.69]
[1759389827235,95.22597078,224.11,224.1,0.69]
[1759389828442,10.87647521,224.15,224.11,4.4620945]
[1759389828643,3.26670756,224.14,224.11,0.69]
[1759389828842,3.26670756,224.13,224.11,0.69]
[1759389829142,3.26670756,224.12,224.11,0.69]
[1759389831422,80.8,224.16,224.12,15.61663394]
[1759389831644,10.87647521,224.18,224.13,0.69]
[1759389831833,3.27404576,224.17,224.14,33.41]
[1759389832138,3.27404576,224.16,224.15,5.15129823]
[1759389832661,3.27404576,224.16,224.15,4.46129823]
[1759389832963,3.27404576,224.16,224.15,0.69]
[1759389834142,3.27404576,224.16,224.15,5.15129823]
[1759389834541,3.27404576,224.16,224.15,37.83129823]
[1759389838358,91.96079835,224.22,224.15,48.98454382]
[1759389838542,87.38407582,224.21,224.15,48.98454382]
[1759389838742,6.58407582,224.2,224.15,48.98454382]
[1759389839074,6.58407582,224.19,224.16,0.7]
[1759389839281,80.8,224.21,224.18,20.8]
[1759389839575,6.58287752,224.2,224.19,33.34]
[1759389840184,6.58287752,224.2,224.19,37.80050225]
[1759389841385,6.58287752,224.2,224.19,37.10050225]
[1759389841994,6.58287752,224.2,224.19,37.08050225]
[1759389842158,3.29143876,224.2,224.19,37.78050225]
[1759389842557,3.29143876,224.2,224.19,37.08050225]
[1759389843174,3.29143876,224.2,224.19,4.46050225]
[1759389843593,3.29143876,224.2,224.19,37.04050225]
[1759389843763,3.29143876,224.2,224.19,4.46050225]
[1759389843964,80.8,224.21,224.19,37.04050225]
[1759389844385,80.8,224.2,224.19,37.04050225]
[1759389844689,84.09139988,224.2,224.19,37.02050225]
[1759389845288,80.8,224.2,224.19,36.02050225]
[1759389845966,81.48,224.2,224.12,11.1545747]
[1759389846192,0.28432314,224.18,224.13,37.00169633]
[1759389846376,0.28432314,224.18,224.14,0.7]
[1759389848384,0.28432314,224.18,224.14,5.16149186]
[1759389849882,0.28432314,224.18,224.14,4.46149186]
[1759389850188,0.28432314,224.18,224.15,0.7]
[1759389850388,80.8,224.17,224.16,32.5]
[1759389850693,13.33997137,224.19,224.15,32.5]
[1759389850904,0.68,224.18,224.15,32.5]
[1759389851393,0.68,224.18,224.15,32.48]
[1759389851774,0.68,224.18,224.13,4.46152873]
[1759389851775,11.16079835,224.17,224.12,0.7]
[1759389851975,11.16079835,224.17,224.09,0.7]
[1759389851976,0.28432314,224.14,224.09,0.7]
[1759389852185,137.36074312,224.18,224.06,0.7]
[1759389852186,11.16079835,224.12,224.06,0.7]
[1759389852393,11.16079835,224.12,224.07,32.5]
[1759389852603,11.84079835,224.12,224.07,32.5]
[1759389852799,11.84079835,224.12,224.01,37.9447346]
[1759389852800,10.87647521,224.1,224.04,21.5]
[1759389853105,80.8,224.09,224.05,32.5]
[1759389853289,80.8,224.09,224.06,0.7]
[1759389853685,80.8,224.09,224.05,36.96319248]
[1759389854182,80.8,224.09,224.06,0.7]
[1759389854381,80.8,224.09,224.06,32.48]
[1759389854810,81.48,224.09,224.06,32.48]
[1759389855389,80.8,224.09,224.07,0.7]
[1759389855581,11.16079835,224.08,224.01,15.6241801]
[1759389855788,11.16079835,224.08,224.03,0.7]
[1759389855983,80.8,224.09,224.04,0.7]
[1759389856285,80.8,224.09,224.05,32.46]
[1759389856486,80.8,224.09,224.06,0.7]
[1759389857087,11.16079835,224.08,224.04,53.96]
[1759389857505,11.16079835,224.08,224.05,32.44]
[1759389857710,11.16079835,224.08,224.06,4.46309024]
[1759389858090,80.8,224.09,224.06,5.16309024]
[1759389859485,80.8,224.09,224.06,4.66309024]
[1759389861994,80.8,224.09,224.06,3.96309024]
[1759389862521,80.8,224.09,224.07,32.44]
[1759389863094,0.68,224.08,224.07,32.42]
[1759389863412,80.8,224.09,224.07,32.42]
[1759389864598,11.16079835,224.08,224.05,4.46328944]
[1759389864796,11.16079835,224.08,224.06,32.42]
[1759389865323,80.8,224.07,224.06,32.42]
[1759389866319,81.08432314,224.06,223.98,0.68]
[1759389866523,11.16079835,224.04,224.01,19.76]
[1759389866709,80.8,224.03,224.0,4.56427735]
[1759389866915,91.96079835,224.03,224.02,32.4]
[1759389868240,91.96079835,224.03,224.02,36.86388715]
[1759389868532,91.96079835,224.03,224.02,4.46388715]
[1759389869021,91.96079835,224.03,224.02,36.84388715]
[1759389869804,91.96079835,224.03,224.02,32.38]
[1759389871040,11.16079835,224.03,224.02,32.38]
[1759389871341,11.16079835,224.03,224.01,32.36]
[1759389871518,94.9869207,224.02,224.0,0.1]
[1759389871917,0.68,224.01,224.0,0.1]
[1759389872117,94.9869207,224.02,224.0,0.1]
[1759389873134,91.96079835,224.02,224.0,5.2441534]
[1759389873328,91.96079835,224.02,224.0,4.5641534]
[1759389876241,91.96079835,224.02,224.0,0.1]
[1759389876420,91.96079835,224.02,224.0,4.56426648]
[1759389877006,91.96079835,224.01,224.0,0.1]
[1759389877745,11.84079835,224.01,224.0,0.1]
[1759389878042,11.16079835,224.01,224.0,0.1]
[1759389882044,11.16079835,224.01,224.0,0.78]
[1759389882338,11.16079835,224.01,224.0,5.24428571]
[1759389883419,11.16079835,224.01,224.0,4.56428571]
[1759389884851,11.16079835,224.03,224.0,5.24428571]
[1759389885158,11.16079835,224.03,224.01,0.68]
[1759389885753,11.16079835,224.03,224.0,4.56428571]
[1759389885962,11.16079835,224.03,224.0,5.24428571]
[1759389886255,11.16079835,224.03,224.0,4.56428571]
[1759389886458,11.16079835,224.03,224.01,0.68]
[1759389886655,11.16079835,224.03,224.0,4.56428571]
[1759389886854,11.16079835,224.03,224.0,5.24428571]
[1759389887545,0.68,224.09,224.01,0.68]
[1759389887737,0.14216157,224.07,224.02,32.2]
[1759389888059,0.28432314,224.07,224.03,0.68]
[1759389888261,0.28432314,224.07,224.04,0.68]
[1759389888556,3.02612235,224.09,224.0,32.3]
[1759389888557,11.16079835,224.05,224.0,32.3]
[1759389888738,0.28432314,224.05,224.01,0.68]
[1759389889140,10.87647521,224.1,224.02,4.46388715]
[1759389889338,0.28432314,224.09,224.03,0.68]
[1759389889549,0.14216157,224.09,224.04,32.22]
[1759389889743,2.48828392,224.09,224.03,0.68]
[1759389889959,0.14216157,224.08,224.04,32.22]
[1759389890265,0.14216157,224.08,224.04,32.9]
[1759389890937,0.14216157,224.08,224.05,0.68]
[1759389891137,0.14216157,224.08,224.04,36.6833579]
[1759389891338,0.14216157,224.08,224.04,37.3633579]
[1759389892162,2.63044549,224.09,224.04,37.3633579]
[1759389892364,0.68,224.08,224.04,32.22]
[1759389892548,0.28432314,224.05,224.02,4.4638231]
[1759389892748,0.28432314,224.05,224.03,32.2]
[1759389894860,91.96079835,224.04,224.03,32.2]
[1759389895064,11.16079835,224.04,224.03,32.2]
[1759389895974,11.16079835,224.04,224.03,31.7]
[1759389896865,11.16079835,224.04,224.02,5.12378808]
[1759389897064,11.16079835,224.04,224.03,0.66]
[1759389898268,132.9,224.08,224.03,0.66]
[1759389898567,17.76257365,224.07,224.04,32.14]
[1759389898870,6.6017753,224.06,224.04,32.8]
[1759389899049,11.16079835,224.07,224.04,32.8]
[1759389899250,6.60225812,224.06,224.04,32.8]
[1759389899459,80.8,224.06,224.04,32.8]
[1759389899653,80.8,224.06,224.04,37.26343731]
[1759389899870,80.8,224.06,224.05,0.66]
[1759389900064,87.40609444,224.06,224.05,0.66]
[1759389900849,84.10304722,224.06,224.05,5.12328944]
[1759389901270,87.40764947,224.06,224.05,32.12]
[1759389901573,87.40866516,224.06,224.05,32.12]
[1759389902256,87.40866516,224.06,224.04,32.1]
[1759389902448,80.8,224.06,224.03,4.4634953]
[1759389902648,80.8,224.06,224.04,32.1]
[1759389903064,80.8,224.06,224.04,32.76]
[1759389903654,80.94216157,224.06,224.05,0.66]
[1759389903863,17.77281055,224.06,224.05,0.66]
[1759389904569,17.77281055,224.06,224.02,0.66]
[1759389904777,11.16079835,224.06,224.04,32.08]
[1759389905272,3.30680407,224.05,224.04,32.08]
[1759389905477,3.30680407,224.05,224.03,0.66]
[1759389905772,11.16079835,224.06,224.04,32.08]
[1759389905990,3.30672358,224.05,224.02,4.46386603]
[1759389906157,11.16079835,224.05,224.03,32.06]
[1759389907810,11.16079835,224.05,224.03,36.52363624]
[1759389909003,11.16079835,224.05,224.03,32.02]
[1759389909201,6.61934382,224.04,224.03,32.02]
[1759389909386,6.61934382,224.04,224.03,32.68]
[1759389910607,6.61934382,224.04,224.03,37.14368789]
[1759389911010,6.61934382,224.04,224.02,32.02]
[1759389911306,6.61934382,224.03,224.02,32.02]
[1759389911607,6.61934382,224.03,224.02,32.68]
[1759389912110,11.16079835,224.05,224.03,4.46368789]
[1759389912281,6.61720906,224.04,224.03,5.12368789]
[1759389912900,6.61720906,224.04,224.02,32.0]
[1759389913099,6.61720906,224.03,224.02,32.0]
[1759389913808,6.61720906,224.03,224.02,32.66]
[1759389915218,6.61720906,224.03,224.02,5.12388715]
[1759389915400,6.61720906,224.03,224.02,37.08388715]
[1759389915602,87.41720906,224.03,224.02,37.08388715]
[1759389915802,87.41720906,224.03,224.02,36.42388715]
[1759389915997,87.41720906,224.03,224.02,31.96]
[1759389916502,87.41720906,224.03,224.02,37.08388715]
[1759389917518,87.41720906,224.03,224.02,5.12388715]
[1759389917704,87.41720906,224.03,224.02,37.06388715]
[1759389919323,84.10860453,224.03,224.02,37.06388715]
[1759389920021,80.8,224.03,224.02,37.06388715]
[1759389921315,80.8,224.03,224.02,5.12388715]
[1759389921629,11.16079835,224.05,224.02,37.02388715]
[1759389921915,11.16079835,224.05,224.04,4.46348866]
[1759389922122,11.16079835,224.07,224.04,36.36348866]
[1759389922293,6.60579854,224.06,224.04,36.36348866]
[1759389922498,6.60573538,224.05,224.04,37.03348866]
[1759389923416,6.60573538,224.05,224.04,4.46348866]
[1759389923620,6.60573538,224.05,224.04,36.36348866]
[1759389923621,6.60635994,224.05,224.04,36.36348866]
[1759389924206,6.60635994,224.05,224.04,37.05348866]
[1759389926330,6.60635994,224.05,224.04,36.36348866]
[1759389926502,6.60635994,224.05,224.04,37.05348866]
[1759389931629,6.60635994,224.05,224.04,50.45861388]
[1759389933350,3.30321008,224.05,224.04,50.45861388]
[1759389934934,3.30321008,224.05,224.04,50.35861388]
[1759389935157,11.16079835,224.07,224.04,50.35861388]
[1759389935363,6.61346818,224.06,224.05,5.15328944]
[1759389935746,6.61346818,224.06,224.05,36.24328944]
[1759389936252,6.61346818,224.06,224.05,36.93328944]
[1759389936455,87.41346818,224.06,224.05,36.93328944]
[1759389936758,87.41346818,224.06,224.05,32.47]
[1759389937258,87.41346818,224.06,224.05,45.87392735]
[1759389937434,87.41346818,224.06,224.05,13.40392735]
[1759389937639,87.41346818,224.06,224.05,31.78]
[1759389938134,87.41346818,224.06,224.03,4.46368789]
[1759389938341,6.61351136,224.05,224.04,31.78]
[1759389938541,17.77430971,224.05,224.04,13.40512522]
[1759389938753,17.77430971,224.05,224.03,36.24368789]
[1759389938940,6.61351136,224.04,224.03,4.46368789]
[1759389939147,6.61351136,224.04,224.03,36.24368789]
[1759389939459,6.61351136,224.04,224.03,36.93368789]
[1759389939835,6.61351136,224.04,224.03,50.3400112]
[1759389940048,3.30673409,224.04,224.03,50.3400112]
[1759389940747,3.30673409,224.04,224.03,18.5600112]
[1759389940949,6.61193097,224.04,224.03,49.6500112]
[1759389941349,6.61039357,224.04,224.03,49.6500112]
[1759389942056,6.61039357,224.04,224.03,50.3400112]
[1759389942767,6.61039357,224.04,224.03,18.5600112]
[1759389942968,3.30519669,224.04,224.03,50.3200112]
[1759389943269,3.30519669,224.04,224.03,49.6300112]
[1759389943863,6.60146403,224.04,224.03,49.6300112]
[1759389944062,3.30060245,224.04,224.03,50.3200112]
[1759389944250,6.60133465,224.04,224.03,50.3200112]
[1759389944446,6.60133465,224.04,224.03,49.6100112]
[1759389944658,6.60133465,224.04,224.03,36.20368789]
[1759389945864,6.60133465,224.04,224.02,13.40572424]
[1759389946037,7.26139884,224.03,224.0,0.1]
[1759389946241,3.30063405,224.02,224.0,0.1]
[1759389946472,0.66,224.02,224.0,0.1]
[1759389946967,0.28432314,224.03,224.0,4.5641868]
[1759389947267,0.28432314,224.03,224.01,31.74]
[1759389947960,10.87647521,224.06,224.02,0.69]
[1759389948163,10.87647521,224.04,224.02,0.69]
[1759389948340,87.40146786,224.03,224.02,0.69]
[1759389949251,87.40146786,224.03,224.02,5.15388715]
[1759389949568,87.40146786,224.03,224.02,4.46388715]
[1759389951149,87.40146786,224.03,224.02,5.15388715]
[1759389951466,84.10073393,224.03,224.02,5.15388715]
[1759389951854,87.40012597,224.03,224.02,5.15388715]
[1759389952167,87.39768354,224.03,224.02,4.46388715]
[1759389952540,84.10073393,224.03,224.02,31.7]
[1759389952753,87.39789441,224.03,224.02,31.7]
[1759389953340,87.39789441,224.03,224.01,4.4640854]
[1759389953538,3.30073393,224.02,224.01,36.1440854]
[1759389953752,3.30073393,224.02,224.01,36.8340854]
[1759389955382,3.30073393,224.02,224.01,36.1440854]
[1759389956463,0.28432314,224.05,224.01,36.8240854]
[1759389956651,6.59211242,224.04,224.02,0.68]
[1759389956856,0.28432314,224.06,224.02,0.68]
[1759389957081,6.59258006,224.05,224.02,0.68]
[1759389957283,6.59258006,224.04,224.02,0.68]
[1759389957479,3.29629003,224.03,224.02,0.68]
[1759389957870,3.29629003,224.03,224.02,5.14388715]
[1759389959075,3.29679104,224.03,224.02,5.14388715]
[1759389960872,6.59565028,224.03,224.01,31.68]
[1759389961180,6.59565028,224.02,224.0,10.97647521]
[1759389961478,0.28432314,224.04,224.0,31.74]
[1759389961690,6.59683231,224.03,224.0,31.74]
[1759389961862,6.59683231,224.02,224.0,31.74]
[1759389962065,0.28432314,224.04,224.0,31.74]
[1759389962272,6.59700274,224.03,224.0,31.74]
[1759389962470,6.59700274,224.02,224.0,31.74]
[1759389962673,3.29856251,224.01,224.0,4.56423644]
[1759389962870,3.29856251,224.01,224.0,5.24423644]
[1759389963066,10.87647521,224.03,224.0,4.56423644]
[1759389963267,6.59750996,224.02,224.0,4.56423644]
[1759389963472,10.87647521,224.03,224.0,4.56423644]
[1759389963679,6.59755916,224.02,224.0,4.56423644]
[1759389963882,10.87647521,224.03,224.0,4.56423644]
[1759389964183,6.59755916,224.02,224.0,4.56423644]
[1759389964380,10.87647521,224.03,224.0,4.56423644]
[1759389964597,10.87647521,224.03,224.0,0.1]
[1759389964598,11.16079835,224.01,224.0,0.1]
[1759389964798,17.75768083,224.01,224.0,0.1]
[1759389965188,18.43768083,224.01,224.0,0.1]
[1759389965387,17.75768083,224.01,224.0,0.1]
[1759389966578,17.75670135,224.01,224.0,0.1]
[1759389969305,17.75670135,224.01,224.0,0.78]
[1759389969594,14.45840053,224.01,224.0,5.24428571]
[1759389969995,3.57669352,224.01,224.0,5.24428571]
[1759389970200,0.28432314,224.01,224.0,5.24428571]
[1759389972001,0.28432314,224.01,224.0,4.56428571]
[1759389972311,0.28432314,224.01,224.0,0.1]
[1759389973200,3.57599127,224.01,224.0,0.1]
[1759389973885,3.57599127,224.01,224.0,4.56428571]
[1759389974290,0.28432314,224.01,224.0,4.56428571]
[1759389974989,14.4528497,224.01,224.0,4.56428571]
[1759389975398,14.4528449,224.01,224.0,4.56428571]
[1759389975708,14.45322405,224.01,224.0,0.1]
[1759389976582,11.16079835,224.01,224.0,0.1]
[1759389976981,14.45147462,224.01,224.0,0.1]
[1759389977777,3.29067627,224.01,224.0,5.24428571]
[1759389978209,3.29067627,224.01,224.0,0.1]
[1759389978507,3.57499941,224.01,224.0,4.56428571]
[1759389979028,0.28432314,224.01,224.0,5.24428571]
[1759389979717,6.86616827,224.01,224.0,0.1]
[1759389980512,7.54616827,224.01,224.0,0.1]
[1759389981105,9.89399487,224.01,224.0,0.1]
[1759389982032,6.86616827,224.01,224.0,0.1]
[1759389982350,36.86616827,224.01,224.0,0.1]
[1759389982695,47.74264348,224.01,224.0,0.1]
[1759389982996,33.29097809,224.01,224.0,5.25428571]
[1759389983196,30.0,224.01,224.0,5.25428571]
[1759389983522,2.3478266,224.05,224.0,5.25428571]
[1759389983702,9.2155816,224.04,224.0,5.25428571]
[1759389983907,6.58343186,224.03,224.0,5.25428571]
[1759389984118,3.29171593,224.02,224.0,5.25428571]
[1759389984297,2.63214974,224.04,224.0,5.25428571]
[1759389984498,6.58348766,224.03,224.0,5.25428571]
[1759389984698,3.29174383,224.02,224.0,5.25428571]
[1759389984900,0.28432314,224.04,224.0,5.25428571]
[1759389985116,6.58288454,224.03,224.0,5.25428571]
[1759389985325,3.29144227,224.02,224.0,5.25428571]
[1759389985498,0.28432314,224.04,224.0,5.25428571]
[1759389985699,6.58338842,224.03,224.01,0.66]
[1759389985998,3.29169421,224.02,224.01,0.66]
[1759389986201,3.29169421,224.02,224.01,5.12408642]
[1759389988223,0.28432314,224.05,224.01,5.12408642]
[1759389988526,6.59074966,224.04,224.02,0.66]
[1759389988723,0.28432314,224.05,224.02,0.66]
[1759389988724,3.29537483,224.03,224.02,0.66]
[1759389989904,101.6,224.11,224.02,5.12388715]
[1759389990121,10.87647521,224.09,224.03,32.3]